[Event "DVM U14 2024"]
[Site "Heidelberg"]
[Date "2024.12.27"]
[Round "2"]
[White "Han, Erdem"]
[Black "Retzlaff, Kian"]
[Result "0-1"]
[ECO "E90"]
[WhiteElo "1751"]
[BlackElo "1826"]
[Annotator "NA RC"]
[PlyCount "98"]
[EventDate "2024.12.23"]
[EventType "team-tourn"]
[EventRounds "7"]
[EventCountry "GER"]
[SourceTitle "playchess.com"]
[Source "ChessBase"]
[SourceQuality "1"]
[TimeControl "40/5400+30:1800+30"]

1. d4 {[%emt 0:00:01]} Nf6 {[%emt 0:00:02]} 2. c4 {[%emt 0:00:10]} g6 {[%emt 0:00:07]} 3. Nc3 {[%emt 0:00:12]} Bg7 {[%emt 0:00:08]} 4. e4 {[%emt 0:00:07]} d6 {[%emt 0:00:03]} 5. Nf3 {[%emt 0:00:54]} Bg4 {[%emt 0:00:25]} 6. Be2 {[%emt 0:00:31]} Bxf3 {[%emt 0:00:05]} 7. Bxf3 {[%emt 0:01:08]} e5 {[%emt 0:00:06]} 8. dxe5 {[%emt 0:10:30]} dxe5 {[%emt 0:00:28]} 9. Qxd8+ {[%emt 0:00:32]} Kxd8 {[%emt 0:00:09]} 10. Bg5 {[%emt 0:02:34]} c6 {[%emt 0:03:47]} 11. O-O-O+ {[%emt 0:08:27]} Ke7 {[%emt 0:07:21]} 12. Bg4 {[%emt 0:04:45]} Bh6 {[%emt 0:17:29]} 13. Bxh6 {[%emt 0:00:23]} Nxg4 {[%emt 0:00:09]} 14. Bg5+ {[%emt 0:01:35]} f6 {[%emt 0:00:12]} 15. Be3 {[%emt 0:00:08]} Nxe3 {[%emt 0:01:23]} 16. fxe3 {[%emt 0:00:08]} Na6 {[%emt 0:05:33]} 17. a3 {[%emt 0:04:27]} Rad8 {[%emt 0:13:37]} 18. Kc2 {[%emt 0:02:09]} Nc7 {[%emt 0:04:35]} 19. Rhf1 {[%emt 0:03:35]} Rxd1 {[%emt 0:02:23]} 20. Rxd1 {[%emt 0:01:37]} Rd8 {[%emt 0:04:36]} 21. Rxd8 {[%emt 0:00:38]} Kxd8 {[%emt 0:00:04]} 22. Kd3 {[%emt 0:06:17]} Ke7 {[%emt 0:02:13]} 23. Ne2 {[%emt 0:06:51]} Ne6 {[%emt 0:02:54]} 24. b4 {[%emt 0:00:45]} h5 {[%emt 0:09:50]} 25. h4 {[%emt 0:04:07]} Nd8 {[%emt 0:01:20]} 26. Ng3 {[%emt 0:02:04]} Nf7 {[%emt 0:00:52]} 27. c5 {[%emt 0:06:04]} b6 {[%emt 0:01:22]} 28. Kc4 {[%emt 0:05:35]} Kd7 {[%emt 0:03:56]} 29. Kd3 {[%emt 0:03:18]} Nh6 {[%emt 0:00:50]} 30. Kc3 {[%emt 0:01:23]} Ng4 {[%emt 0:00:51]} 31. Kd2 {[%emt 0:01:46]} Kc7 {[%emt 0:01:15]} 32. Kd3 {[%emt 0:01:53]} Kb7 {[%emt 0:00:54]} 33. Nf1 {[%emt 0:12:23]} Nf2+ {[%emt 0:00:36]} 34. Kc4 {[%emt 0:00:19]} Nxe4 {[%emt 0:00:18]} 35. cxb6 {[%emt 0:00:28]} axb6 {[%emt 0:00:34]} 36. a4 {[%emt 0:00:41]} Kc7 {[%emt 0:02:43]} 37. Nh2 {[%emt 0:01:45]} Nf2 {[%emt 0:04:23]} 38. Nf3 {[%emt 0:01:35]} Nd1 {[%emt 0:00:34]} 39. Kd3 {[%emt 0:02:07]} Nb2+ {[%emt 0:00:18]} 40. Ke4 {[%emt 0:01:11]} Nxa4 {[%emt 0:00:26]} 41. Nxe5 {[%emt 0:30:15]} fxe5 {[%emt 0:30:10]} 42. Kxe5 {[%emt 0:00:03]} Nc3 {[%emt 0:02:12]} 43. Kf4 {[%emt 0:03:05]} Nd5+ {[%emt 0:00:13]} 44. Kg5 {[%emt 0:01:35]} Nxe3 {[%emt 0:00:08]} 45. g3 {[%emt 0:00:05]} Nf1 {[%emt 0:00:20]} 46. g4 {[%emt 0:00:28]} hxg4 {[%emt 0:00:21]} 47. Kxg4 {[%emt 0:00:05]} c5 {[%emt 0:00:06]} 48. bxc5 {[%emt 0:00:06]} bxc5 {[%emt 0:00:04]} 49. Kg5 {[%emt 0:00:57]} Ng3 {[%emt 0:02:42]} 0-1

[Event "DVM U14 2024"]
[Site "Heidelberg"]
[Date "2024.12.27"]
[Round "2"]
[White "Blumenthal Tuset, Sebastian"]
[Black "Draxler, Henning"]
[Result "1-0"]
[ECO "C66"]
[WhiteElo "1732"]
[BlackElo "1480"]
[Annotator "NA RC"]
[PlyCount "69"]
[EventDate "2024.12.23"]
[EventType "team-tourn"]
[EventRounds "7"]
[EventCountry "GER"]
[SourceTitle "playchess.com"]
[Source "ChessBase"]
[SourceQuality "1"]
[TimeControl "40/5400+30:1800+30"]

1. e4 {[%emt 0:00:04]} e5 {[%emt 0:00:08]} 2. Nf3 {[%emt 0:00:04]} Nc6 {[%emt 0:00:10]} 3. Bb5 {[%emt 0:00:05]} Nf6 {[%emt 0:00:22]} 4. O-O {[%emt 0:00:23]} d6 {[%emt 0:05:13]} 5. d4 {[%emt 0:04:14]} exd4 {[%emt 0:03:09]} 6. e5 {[%emt 0:02:19]} dxe5 {[%emt 0:26:56]} 7. Nxe5 {[%emt 0:01:29]} Bd7 {[%emt 0:10:02]} 8. Nxd7 {[%emt 0:01:53]} Qxd7 {[%emt 0:02:20]} 9. Re1+ {[%emt 0:02:02]} Be7 {[%emt 0:03:17]} 10. Qe2 {[%emt 0:03:58]} a6 {[%emt 0:04:02]} 11. Bxc6 {[%emt 0:00:34]} bxc6 {[%emt 0:00:11]} 12. b3 {[%emt 0:01:16]} Kf8 {[%emt 0:04:21]} 13. Bb2 {[%emt 0:05:30]} c5 {[%emt 0:03:15]} 14. Na3 {[%emt 0:02:18]} Nd5 {[%emt 0:06:17]} 15. Qf3 {[%emt 0:02:58]} c6 {[%emt 0:01:55]} 16. Rad1 {[%emt 0:01:43]} f6 {[%emt 0:01:41]} 17. Nc4 {[%emt 0:00:52]} Bd6 {[%emt 0:01:29]} 18. c3 {[%emt 0:02:20]} dxc3 {[%emt 0:03:28]} 19. Bxc3 {[%emt 0:01:54]} Rd8 {[%emt 0:05:34]} 20. g4 {[%emt 0:16:56]} Qc7 {[%emt 0:01:48]} 21. Ba5 {[%emt 0:02:24]} Qd7 {[%emt 0:03:19]} 22. Bxd8 {[%emt 0:00:52]} Qxd8 {[%emt 0:00:12]} 23. g5 {[%emt 0:00:56]} Kf7 {[%emt 0:02:25]} 24. Qe4 {[%emt 0:03:35]} Qd7 {[%emt 0:01:10]} 25. Nxd6+ {[%emt 0:08:41]} Qxd6 {[%emt 0:00:19]} 26. Rd3 {[%emt 0:04:48]} Rd8 {[%emt 0:03:21]} 27. Rf3 {[%emt 0:02:05]} Rh8 {[%emt 0:03:17]} 28. Rh3 {[%emt 0:02:21]} g6 {[%emt 0:00:41]} 29. gxf6 {[%emt 0:00:44]} Nxf6 {[%emt 0:00:20]} 30. Qc4+ {[%emt 0:00:31]} Kg7 {[%emt 0:00:16]} 31. Qe6 {[%emt 0:01:38]} Qxe6 {[%emt 0:02:17]} 32. Rxe6 {[%emt 0:00:07]} Rc8 {[%emt 0:00:17]} 33. Re7+ {[%emt 0:00:26]} Kf8 {[%emt 0:00:12]} 34. Ra7 {[%emt 0:00:10]} h5 {[%emt 0:00:23]} 35. Rf3 {[%emt 0:00:19]} 1-0

[Event "DVM U14 2024"]
[Site "Heidelberg"]
[Date "2024.12.27"]
[Round "2"]
[White "Yan, Haichen"]
[Black "Spielvogel, Oliver"]
[Result "1-0"]
[ECO "A84"]
[WhiteElo "1732"]
[BlackElo "1543"]
[Annotator "NA RC"]
[PlyCount "71"]
[EventDate "2024.12.23"]
[EventType "team-tourn"]
[EventRounds "7"]
[EventCountry "GER"]
[SourceTitle "playchess.com"]
[Source "ChessBase"]
[SourceQuality "1"]
[TimeControl "40/5400+30:1800+30"]

1. d4 {[%emt 0:00:08]} d5 {[%emt 0:00:05]} 2. c4 {[%emt 0:00:00]} e6 {[%emt 0:00:26]} 3. Nc3 {[%emt 0:00:05]} c6 {[%emt 0:00:12]} 4. Nf3 {[%emt 0:00:17]} f5 {[%emt 0:00:30]} 5. Bf4 {[%emt 0:00:08]} Nf6 {[%emt 0:00:22]} 6. e3 {[%emt 0:00:29]} Bd6 {[%emt 0:00:17]} 7. Bd3 {[%emt 0:00:19]} Bxf4 {[%emt 0:00:20]} 8. exf4 {[%emt 0:00:05]} O-O {[%emt 0:00:19]} 9. O-O {[%emt 0:00:35]} Ne4 {[%emt 0:00:11]} 10. Qc2 {[%emt 0:00:33]} Nd7 {[%emt 0:00:17]} 11. Rab1 {[%emt 0:01:47]} Qc7 {[%emt 0:01:00]} 12. g3 {[%emt 0:00:53]} Ndf6 {[%emt 0:01:09]} 13. Ne5 {[%emt 0:03:30]} Re8 {[%emt 0:01:56]} 14. Rfc1 {[%emt 0:01:30]} Bd7 {[%emt 0:00:46]} 15. f3 {[%emt 0:01:09]} Nd6 {[%emt 0:00:24]} 16. c5 {[%emt 0:01:59]} Nf7 {[%emt 0:02:23]} 17. b4 {[%emt 0:00:55]} a6 {[%emt 0:00:48]} 18. a4 {[%emt 0:02:22]} Reb8 {[%emt 0:01:23]} 19. b5 {[%emt 0:05:20]} axb5 {[%emt 0:01:37]} 20. axb5 {[%emt 0:00:19]} Be8 {[%emt 0:02:15]} 21. b6 {[%emt 0:01:04]} Qc8 {[%emt 0:01:03]} 22. Ra1 {[%emt 0:02:33]} g6 {[%emt 0:01:17]} 23. Ra7 {[%emt 0:00:48]} Nxe5 {[%emt 0:01:16]} 24. fxe5 {[%emt 0:00:17]} Nd7 {[%emt 0:00:16]} 25. Rca1 {[%emt 0:00:46]} Rxa7 {[%emt 0:02:39]} 26. bxa7 {[%emt 0:02:17]} Ra8 {[%emt 0:00:22]} 27. Qa4 {[%emt 0:01:49]} Qc7 {[%emt 0:00:30]} 28. Qa5 {[%emt 0:01:44]} Qxa5 {[%emt 0:02:27]} 29. Rxa5 {[%emt 0:00:08]} Kf8 {[%emt 0:00:22]} 30. Na4 {[%emt 0:00:11]} Ke7 {[%emt 0:02:07]} 31. Nb6 {[%emt 0:01:52]} Nxb6 {[%emt 0:00:00]} 32. cxb6 {[%emt 0:00:05]} Bd7 {[%emt 0:02:28]} 33. f4 {[%emt 0:04:09]} Kf7 {[%emt 0:00:44]} 34. h3 {[%emt 0:00:15]} Kg7 {[%emt 0:00:54]} 35. g4 {[%emt 0:00:08]} Be8 {[%emt 0:01:15]} 36. Ba6 {[%emt 0:00:19]} 1-0

[Event "DVM U14 2024"]
[Site "Heidelberg"]
[Date "2024.12.27"]
[Round "2"]
[White "Hahn, Julian"]
[Black "Sitnik, Arthur"]
[Result "1-0"]
[ECO "C77"]
[WhiteElo "1727"]
[BlackElo "1668"]
[Annotator "NA RC"]
[PlyCount "153"]
[EventDate "2024.12.23"]
[EventType "team-tourn"]
[EventRounds "7"]
[EventCountry "GER"]
[SourceTitle "playchess.com"]
[Source "ChessBase"]
[SourceQuality "1"]
[TimeControl "40/5400+30:1800+30"]

1. e4 {[%emt 0:00:02]} e5 {[%emt 0:00:03]} 2. Nf3 {[%emt 0:00:04]} Nc6 {[%emt 0:00:03]} 3. Bb5 {[%emt 0:00:06]} a6 {[%emt 0:00:07]} 4. Ba4 {[%emt 0:00:05]} Nf6 {[%emt 0:00:05]} 5. Nc3 {[%emt 0:00:11]} Bc5 {[%emt 0:00:17]} 6. Bb3 {[%emt 0:01:54]} d6 {[%emt 0:00:07]} 7. h3 {[%emt 0:00:39]} h6 {[%emt 0:00:08]} 8. d3 {[%emt 0:00:29]} O-O {[%emt 0:00:05]} 9. Be3 {[%emt 0:00:35]} Bb4 {[%emt 0:01:06]} 10. O-O {[%emt 0:03:45]} Be6 {[%emt 0:00:25]} 11. Nd5 {[%emt 0:04:52]} Bxd5 {[%emt 0:02:07]} 12. Bxd5 {[%emt 0:02:13]} Nxd5 {[%emt 0:00:20]} 13. exd5 {[%emt 0:00:09]} Ne7 {[%emt 0:00:12]} 14. a3 {[%emt 0:01:04]} Ba5 {[%emt 0:00:16]} 15. b4 {[%emt 0:09:55]} Bb6 {[%emt 0:00:05]} 16. Bxb6 {[%emt 0:00:06]} cxb6 {[%emt 0:00:03]} 17. c4 {[%emt 0:00:25]} f5 {[%emt 0:00:24]} 18. Nd2 {[%emt 0:02:05]} Ng6 {[%emt 0:00:53]} 19. g3 {[%emt 0:11:19]} Qg5 {[%emt 0:05:45]} 20. Kh2 {[%emt 0:04:10]} f4 {[%emt 0:05:05]} 21. Ne4 {[%emt 0:03:35]} fxg3+ {[%emt 0:00:11]} 22. fxg3 {[%emt 0:00:58]} Qe7 {[%emt 0:04:26]} 23. Qg4 {[%emt 0:04:17]} Kh7 {[%emt 0:01:32]} 24. h4 {[%emt 0:01:28]} Rad8 {[%emt 0:11:19]} 25. h5 {[%emt 0:19:18]} Nh8 {[%emt 0:00:10]} 26. Kg2 {[%emt 0:05:56]} g6 {[%emt 0:04:21]} 27. Qe6 {[%emt 0:01:18]} Qxe6 {[%emt 0:01:53]} 28. dxe6 {[%emt 0:00:09]} Rfe8 {[%emt 0:01:39]} 29. Nf6+ {[%emt 0:00:20]} Kg7 {[%emt 0:00:09]} 30. Nxe8+ {[%emt 0:00:19]} Rxe8 {[%emt 0:00:04]} 31. hxg6 {[%emt 0:03:07]} Rxe6 {[%emt 0:00:17]} 32. Rf5 {[%emt 0:03:26]} Nxg6 {[%emt 0:01:12]} 33. Raf1 {[%emt 0:01:15]} Nh8 {[%emt 0:02:04]} 34. Kf3 {[%emt 0:05:15]} e4+ {[%emt 0:03:56]} 35. dxe4 {[%emt 0:01:26]} Nf7 {[%emt 0:00:26]} 36. Ke3 {[%emt 0:00:52]} Ng5 {[%emt 0:04:35]} 37. R1f4 {[%emt 0:01:34]} Rg6 {[%emt 0:12:46]} 38. e5 {[%emt 0:02:11]} Re6 {[%emt 0:13:20]} 39. Kd4 {[%emt 0:00:42]} dxe5+ {[%emt 0:00:36]} 40. Rxe5 {[%emt 0:00:15]} Rd6+ {[%emt 0:02:25]} 41. Kc3 {[%emt 0:32:26]} Rd7 {[%emt 0:33:43]} 42. Rf1 {[%emt 0:00:00]} Nf7 {[%emt 0:00:00]} 43. Re6 {[%emt 0:00:00]} Nd6 {[%emt 0:00:00]} 44. Kb3 {[%emt 0:00:00]} Nf7 {[%emt 0:00:00]} 45. Rxb6 {[%emt 0:00:00]} Ne5 {[%emt 0:00:00]} 46. Re1 {[%emt 0:00:00]} Nf3 {[%emt 0:00:00]} 47. Re3 {[%emt 0:00:00]} Nd4+ {[%emt 0:00:00]} 48. Kc3 {[%emt 0:00:00]} Nc6 {[%emt 0:00:00]} 49. b5 {[%emt 0:00:00]} axb5 {[%emt 0:00:00]} 50. cxb5 {[%emt 0:00:00]} Ne7 {[%emt 0:00:00]} 51. Rd3 {[%emt 0:00:38]} Rc7+ {[%emt 0:00:00]} 52. Kb4 {[%emt 0:01:21]} Nf5 {[%emt 0:00:00]} 53. g4 {[%emt 0:01:35]} Ne7 {[%emt 0:00:00]} 54. Rdd6 {[%emt 0:00:39]} Kf7 {[%emt 0:00:00]} 55. Rxh6 {[%emt 0:01:23]} Nd5+ {[%emt 0:00:00]} 56. Ka5 {[%emt 0:00:16]} Kf8 {[%emt 0:00:00]} 57. Rbd6 {[%emt 0:02:00]} Ne3 {[%emt 0:00:00]} 58. Kb6 {[%emt 0:02:29]} Rf7 {[%emt 0:00:00]} 59. Rd4 {[%emt 0:00:00]} Rg7 {[%emt 0:00:00]} 60. Rh8+ {[%emt 0:00:10]} Ke7 {[%emt 0:00:00]} 61. Re4+ {[%emt 0:00:22]} Kd6 {[%emt 0:00:00]} 62. Rd8+ {[%emt 0:00:16]} Rd7 {[%emt 0:00:00]} 63. Rd4+ {[%emt 0:00:29]} Nd5+ {[%emt 0:00:02]} 64. Rxd5+ {[%emt 0:00:09]} Kxd5 {[%emt 0:00:06]} 65. Rxd7+ {[%emt 0:00:04]} Ke6 {[%emt 0:00:10]} 66. Rxb7 {[%emt 0:00:15]} Kf6 {[%emt 0:00:17]} 67. a4 {[%emt 0:00:12]} Kg5 {[%emt 0:00:05]} 68. a5 {[%emt 0:00:07]} Kxg4 {[%emt 0:00:05]} 69. a6 {[%emt 0:00:08]} Kf5 {[%emt 0:00:04]} 70. a7 {[%emt 0:00:09]} Ke6 {[%emt 0:00:05]} 71. a8=Q {[%emt 0:00:08]} Ke5 {[%emt 0:00:07]} 72. Qf8 {[%emt 0:00:22]} Kd5 {[%emt 0:00:06]} 73. Rd7+ {[%emt 0:00:41]} Ke5 {[%emt 0:00:06]} 74. Qe8+ {[%emt 0:00:40]} Kf6 {[%emt 0:00:06]} 75. Rf7+ {[%emt 0:00:05]} Kg6 {[%emt 0:00:01]} 76. Qg8+ {[%emt 0:00:10]} Kh5 {[%emt 0:00:06]} 77. Rh7# {[%emt 0:00:34]} 1-0

[Event "DVM U14 2024"]
[Site "Heidelberg"]
[Date "2024.12.27"]
[Round "2"]
[White "Freude, Paul"]
[Black "Fischermann, Simon"]
[Result "1-0"]
[ECO "C26"]
[WhiteElo "1714"]
[BlackElo "1899"]
[Annotator "NA RC"]
[PlyCount "51"]
[EventDate "2024.12.23"]
[EventType "team-tourn"]
[EventRounds "7"]
[EventCountry "GER"]
[SourceTitle "playchess.com"]
[Source "ChessBase"]
[SourceQuality "1"]
[TimeControl "40/5400+30:1800+30"]

1. e4 {[%emt 0:00:04]} e5 {[%emt 0:00:04]} 2. Nc3 {[%emt 0:00:08]} Nc6 {[%emt 0:00:05]} 3. g3 {[%emt 0:00:10]} Bc5 {[%emt 0:00:29]} 4. Bg2 {[%emt 0:00:17]} Nf6 {[%emt 0:00:20]} 5. Nge2 {[%emt 0:00:23]} a6 {[%emt 0:01:10]} 6. d3 {[%emt 0:01:00]} h6 {[%emt 0:00:10]} 7. O-O {[%emt 0:00:36]} O-O {[%emt 0:00:07]} 8. h3 $11 {[%emt 0:03:23]} d6 {[%emt 0:00:58]} 9. Kh2 {[%emt 0:00:32]} Nh5 {[%emt 0:07:13]} 10. Ng1 {[%emt 0:10:02]} Nf6 {[%emt 0:01:08]} 11. f4 {[%emt 0:03:11]} exf4 {[%emt 0:00:57]} 12. gxf4 {[%emt 0:04:50]} Nh7 {[%emt 0:03:48]} 13. f5 {[%emt 0:10:10]} Qh4 {[%emt 0:10:05]} 14. Rf4 {[%emt 0:04:24]} Qd8 {[%emt 0:00:55]} 15. Nd5 {[%emt 0:04:40]} Bd4 {[%emt 0:11:27]} 16. Nf3 {[%emt 0:07:22]} Be5 {[%emt 0:00:22]} 17. Nxe5 {[%emt 0:00:40]} dxe5 {[%emt 0:00:06]} 18. Rg4 {[%emt 0:02:05]} Kh8 {[%emt 0:00:27]} 19. Rg3 {[%emt 0:04:22]} Nf6 {[%emt 0:02:34]} 20. Nxf6 {[%emt 0:01:50]} Qxf6 {[%emt 0:00:01]} 21. c3 {[%emt 0:01:49]} Kh7 {[%emt 0:03:47]} 22. Qh5 {[%emt 0:04:47]} Qd6 {[%emt 0:08:15]} 23. Bg5 {[%emt 0:04:38]} Nd8 {[%emt 0:02:28]} 24. Rg1 {[%emt 0:03:40]} Bd7 {[%emt 0:06:23]} 25. Bf3 {[%emt 0:01:24]} Be8 {[%emt 0:01:22]} 26. Be7 {[%emt 0:06:44]} 1-0

[Event "DVM U14 2024"]
[Site "Heidelberg"]
[Date "2024.12.27"]
[Round "2"]
[White "Faerber, Anna"]
[Black "Kaplan, Arne"]
[Result "1/2-1/2"]
[ECO "B22"]
[WhiteElo "1698"]
[BlackElo "1710"]
[Annotator "NA RC"]
[PlyCount "61"]
[EventDate "2024.12.23"]
[EventType "team-tourn"]
[EventRounds "7"]
[EventCountry "GER"]
[SourceTitle "playchess.com"]
[Source "ChessBase"]
[SourceQuality "1"]
[TimeControl "40/5400+30:1800+30"]

1. e4 {[%emt 0:00:06]} c5 {[%emt 0:00:17]} 2. c3 {[%emt 0:00:09]} Nf6 {[%emt 0:00:07]} 3. e5 {[%emt 0:00:09]} Nd5 {[%emt 0:00:22]} 4. Nf3 {[%emt 0:00:08]} d6 {[%emt 0:00:22]} 5. exd6 {[%emt 0:01:10]} e6 {[%emt 0:00:15]} 6. g3 {[%emt 0:00:45]} Bxd6 {[%emt 0:01:44]} 7. Bg2 {[%emt 0:00:42]} Nc6 {[%emt 0:02:05]} 8. O-O {[%emt 0:01:51]} O-O {[%emt 0:01:12]} 9. d4 {[%emt 0:01:42]} cxd4 {[%emt 0:06:19]} 10. Nxd4 {[%emt 0:00:29]} Nxd4 {[%emt 0:02:35]} 11. Qxd4 {[%emt 0:00:51]} Nf6 {[%emt 0:05:02]} 12. Nd2 {[%emt 0:04:54]} e5 {[%emt 0:10:16]} 13. Qe3 {[%emt 0:02:34]} Re8 {[%emt 0:01:31]} 14. Nc4 {[%emt 0:03:52]} Bc7 {[%emt 0:01:11]} 15. Qe2 {[%emt 0:05:08]} Rb8 {[%emt 0:02:54]} 16. Be3 {[%emt 0:05:14]} b6 {[%emt 0:06:10]} 17. Rfd1 {[%emt 0:03:54]} Qe7 {[%emt 0:00:54]} 18. Qc2 {[%emt 0:01:09]} Be6 {[%emt 0:02:04]} 19. Nd2 {[%emt 0:04:19]} h6 {[%emt 0:02:52]} 20. Nf3 {[%emt 0:03:13]} Rbd8 {[%emt 0:05:40]} 21. Re1 {[%emt 0:03:56]} Qd7 {[%emt 0:08:35]} 22. Rad1 {[%emt 0:07:01]} Qc8 {[%emt 0:02:50]} 23. Rxd8 {[%emt 0:02:03]} Rxd8 {[%emt 0:01:09]} 24. Bd2 {[%emt 0:04:55]} Bf5 {[%emt 0:04:39]} 25. Qa4 {[%emt 0:04:55]} Bg4 {[%emt 0:02:29]} 26. Be3 {[%emt 0:02:12]} Qb8 {[%emt 0:01:13]} 27. h3 {[%emt 0:03:51]} Be6 {[%emt 0:01:18]} 28. Qh4 {[%emt 0:05:48]} Nh7 {[%emt 0:02:11]} 29. Qa4 {[%emt 0:02:01]} Nf6 {[%emt 0:00:28]} 30. Qh4 {[%emt 0:04:38]} Nh7 {[%emt 0:00:10]} 31. Qa4 {[%emt 0:03:11]} 1/2-1/2

[Event "DVM U14 2024"]
[Site "Heidelberg"]
[Date "2024.12.27"]
[Round "2"]
[White "Geschke, Jonathan"]
[Black "Gundermann, Mika Oleg"]
[Result "1-0"]
[ECO "C42"]
[WhiteElo "1698"]
[BlackElo "1798"]
[Annotator "NA"]
[PlyCount "207"]
[EventDate "2024.12.23"]
[EventType "team-tourn"]
[EventRounds "7"]
[EventCountry "GER"]
[SourceTitle "playchess.com"]
[Source "ChessBase"]
[SourceQuality "1"]
[TimeControl "40/5400+30:1800+30"]

1. e4 {[%emt 0:00:02]} e5 {[%emt 0:01:14]} 2. Nf3 {[%emt 0:00:11]} Nf6 {[%emt 0:00:06]} 3. Nxe5 {[%emt 0:00:35]} d6 {[%emt 0:02:09]} 4. Nf3 {[%emt 0:00:12]} Nxe4 {[%emt 0:00:09]} 5. Nc3 {[%emt 0:00:33]} Nf6 {[%emt 0:01:18]} 6. d4 {[%emt 0:02:37]} d5 {[%emt 0:00:08]} 7. Be2 {[%emt 0:02:55]} Be7 {[%emt 0:00:55]} 8. O-O {[%emt 0:00:15]} O-O {[%emt 0:00:46]} 9. Bf4 {[%emt 0:02:42]} a6 {[%emt 0:02:00]} 10. a4 {[%emt 0:03:55]} Bf5 {[%emt 0:04:44]} 11. Re1 {[%emt 0:01:16]} Nc6 {[%emt 0:02:26]} 12. h3 {[%emt 0:02:33]} Nb4 {[%emt 0:09:14]} 13. Bd3 {[%emt 0:02:53]} Nxd3 {[%emt 0:04:24]} 14. cxd3 {[%emt 0:00:23]} h6 {[%emt 0:06:52]} 15. Rc1 {[%emt 0:04:22]} Bd6 {[%emt 0:03:41]} 16. Bxd6 {[%emt 0:01:00]} Qxd6 {[%emt 0:00:26]} 17. Ne2 {[%emt 0:04:07]} Qb6 {[%emt 0:06:27]} 18. Ng3 {[%emt 0:02:14]} Bh7 {[%emt 0:05:03]} 19. Re7 {[%emt 0:06:07]} c6 {[%emt 0:02:25]} 20. Rc3 {[%emt 0:04:45]} Rab8 {[%emt 0:05:58]} 21. Rb3 {[%emt 0:00:36]} Qa7 {[%emt 0:00:14]} 22. Qd2 {[%emt 0:07:38]} a5 {[%emt 0:01:55]} 23. Qf4 {[%emt 0:05:59]} Rfc8 {[%emt 0:09:26]} 24. Ne5 {[%emt 0:10:24]} Bg6 {[%emt 0:05:57]} 25. Nxg6 {[%emt 0:00:58]} fxg6 {[%emt 0:00:20]} 26. Qe5 {[%emt 0:09:50]} Re8 {[%emt 0:03:05]} 27. Rxe8+ {[%emt 0:03:34]} Rxe8 {[%emt 0:00:12]} 28. Qc7 {[%emt 0:01:39]} Rb8 {[%emt 0:02:36]} 29. Ne2 {[%emt 0:02:44]} Qa8 {[%emt 0:09:19]} 30. Nf4 {[%emt 0:03:19]} Ne8 {[%emt 0:00:21]} 31. Qb6 {[%emt 0:02:40]} Kf7 {[%emt 0:01:34]} 32. Qc5 {[%emt 0:02:35]} Qa6 {[%emt 0:01:34]} 33. Qc2 {[%emt 0:01:13]} Nd6 {[%emt 0:01:11]} 34. Qe2 {[%emt 0:01:23]} Re8 {[%emt 0:00:08]} 35. Qg4 {[%emt 0:00:56]} g5 {[%emt 0:03:52]} 36. Qd7+ {[%emt 0:03:29]} Re7 {[%emt 0:00:07]} 37. Qxd6 {[%emt 0:00:07]} gxf4 {[%emt 0:00:05]} 38. Qxf4+ {[%emt 0:00:16]} Kg8 {[%emt 0:00:57]} 39. Qd6 {[%emt 0:00:29]} Kf7 {[%emt 0:01:13]} 40. Qf4+ {[%emt 0:02:12]} Kg8 {[%emt 0:00:23]} 41. Qh4 {[%emt 0:30:16]} Rf7 {[%emt 0:31:00]} 42. Qg4 {[%emt 0:01:39]} Qa7 {[%emt 0:02:38]} 43. Rc3 {[%emt 0:01:54]} Qb8 {[%emt 0:02:23]} 44. Rc2 {[%emt 0:01:35]} Qf4 {[%emt 0:00:00]} 45. g3 {[%emt 0:00:00]} Qxg4 {[%emt 0:00:00]} 46. hxg4 {[%emt 0:00:00]} Re7 {[%emt 0:00:00]} 47. Kf1 {[%emt 0:00:00]} Kf7 {[%emt 0:00:00]} 48. Rc5 {[%emt 0:00:00]} Kg6 {[%emt 0:00:00]} 49. Rxa5 {[%emt 0:00:00]} Kg5 {[%emt 0:00:00]} 50. Ra7 {[%emt 0:00:00]} Kf6 {[%emt 0:00:00]} 51. a5 {[%emt 0:00:00]} Ke6 {[%emt 0:00:00]} 52. a6 {[%emt 0:00:00]} bxa6 {[%emt 0:00:00]} 53. Rxa6 {[%emt 0:00:00]} Kd6 {[%emt 0:00:00]} 54. Rb6 {[%emt 0:00:00]} Kc7 {[%emt 0:00:00]} 55. Rb3 {[%emt 0:00:00]} Re8 {[%emt 0:00:00]} 56. Kg2 {[%emt 0:00:00]} Ra8 {[%emt 0:00:00]} 57. Kf3 {[%emt 0:00:00]} Rf8+ {[%emt 0:00:00]} 58. Kg2 {[%emt 0:00:00]} Ra8 {[%emt 0:00:00]} 59. Ra3 {[%emt 0:00:00]} Rg8 {[%emt 0:00:00]} 60. Ra7+ {[%emt 0:00:00]} Kd6 {[%emt 0:00:00]} 61. Rb7 {[%emt 0:00:01]} Ke6 {[%emt 0:00:00]} 62. b4 {[%emt 0:00:50]} Kd6 {[%emt 0:00:00]} 63. b5 {[%emt 0:00:26]} cxb5 {[%emt 0:00:00]} 64. Rxb5 {[%emt 0:00:01]} Re8 {[%emt 0:00:00]} 65. Rb7 {[%emt 0:00:48]} Rg8 {[%emt 0:02:11]} 66. Rf7 {[%emt 0:00:39]} Ke6 {[%emt 0:00:06]} 67. Rf5 {[%emt 0:01:01]} Rc8 {[%emt 0:01:08]} 68. Re5+ {[%emt 0:00:38]} Kd6 {[%emt 0:00:15]} 69. Kf3 {[%emt 0:00:12]} Rf8+ {[%emt 0:00:21]} 70. Ke3 {[%emt 0:00:52]} Rf7 {[%emt 0:04:24]} 71. g5 {[%emt 0:01:30]} h5 {[%emt 0:01:19]} 72. g6 {[%emt 0:01:00]} Rf6 {[%emt 0:00:07]} 73. Rxh5 {[%emt 0:00:16]} Rxg6 {[%emt 0:00:05]} 74. Kf4 {[%emt 0:01:49]} Rf6+ {[%emt 0:00:57]} 75. Rf5 {[%emt 0:00:14]} Rg6 {[%emt 0:00:11]} 76. f3 {[%emt 0:00:53]} Ke6 {[%emt 0:00:20]} 77. Rg5 {[%emt 0:00:17]} Rf6+ {[%emt 0:00:12]} 78. Kg4 {[%emt 0:00:11]} g6 {[%emt 0:00:38]} 79. f4 {[%emt 0:00:17]} Kd6 {[%emt 0:00:41]} 80. Re5 {[%emt 0:00:11]} Rf8 {[%emt 0:00:59]} 81. Kg5 {[%emt 0:00:29]} Rg8 {[%emt 0:01:15]} 82. g4 {[%emt 0:00:02]} Rf8 {[%emt 0:00:27]} 83. Re1 {[%emt 0:00:30]} Rg8 {[%emt 0:02:26]} 84. Ra1 {[%emt 0:00:14]} Ke6 {[%emt 0:00:25]} 85. Ra6+ {[%emt 0:00:11]} Kf7 {[%emt 0:01:53]} 86. Rf6+ {[%emt 0:00:15]} Ke7 {[%emt 0:00:40]} 87. Rxg6 {[%emt 0:00:11]} Rf8 {[%emt 0:00:25]} 88. f5 {[%emt 0:00:50]} Rh8 {[%emt 0:00:27]} 89. Rh6 {[%emt 0:01:06]} Rg8+ {[%emt 0:00:08]} 90. Kf4 {[%emt 0:00:09]} Rf8 {[%emt 0:01:37]} 91. Ke5 {[%emt 0:00:14]} Rg8 {[%emt 0:00:13]} 92. Rg6 {[%emt 0:00:35]} Rd8 {[%emt 0:00:14]} 93. Re6+ {[%emt 0:00:09]} Kf7 {[%emt 0:00:04]} 94. g5 {[%emt 0:00:33]} Rh8 {[%emt 0:00:25]} 95. Kxd5 {[%emt 0:00:15]} Rh5 {[%emt 0:00:13]} 96. g6+ {[%emt 0:00:21]} Kg7 {[%emt 0:00:14]} 97. Ke5 {[%emt 0:00:14]} Rg5 {[%emt 0:00:34]} 98. Re7+ {[%emt 0:00:40]} Kf8 {[%emt 0:00:08]} 99. Rf7+ {[%emt 0:00:07]} Kg8 {[%emt 0:00:17]} 100. Kf6 {[%emt 0:00:08]} Rh5 {[%emt 0:00:16]} 101. d5 {[%emt 0:00:46]} Rh4 {[%emt 0:00:10]} 102. g7 {[%emt 0:00:43]} Rh6+ {[%emt 0:00:28]} 103. Ke7 {[%emt 0:00:42]} Ra6 {[%emt 0:00:11]} 104. d6 {[%emt 0:01:14]} 1-0